[Event "January 9 Late 2024"]
[Site "https://www.chess.com"]
[Date "2024.01.09"]
[Round "3"]
[White "Grischuk, Alexander"]
[Black "Dourerassou, Jonathan"]
[Result "1-0"]
[Board "14"]
[TimeControl "180+1"]
[WhiteFideId "4126025"]
[BlackFideId "628050"]
[WhiteElo "3056"]
[BlackElo "2834"]
[WhiteTeam "RUS"]
[BlackTeam "FRA"]
[WhiteClock "0:00:23"]
[BlackClock "0:00:04"]

1. d4 {[%clk 0:03:00]}  Nf6 {[%clk 0:02:27]} 2. c4 {[%clk 0:03:00]}  g6 {[%clk 0:02:25]} 3. g3 {[%clk 0:02:56]}  Bg7 {[%clk 0:02:26]} 4. Bg2 {[%clk 0:02:56]}  O-O {[%clk 0:02:26]} 5. Nc3 {[%clk 0:02:57]}  d6 {[%clk 0:02:27]} 6. Nf3 {[%clk 0:02:57]}  Nbd7 {[%clk 0:02:28]} 7. O-O {[%clk 0:02:56]}  a6 {[%clk 0:02:28]} 8. e4 {[%clk 0:02:52]}  c5 {[%clk 0:02:29]} 9. Re1 {[%clk 0:02:38]}  cxd4 {[%clk 0:02:29]} 10. Nxd4 {[%clk 0:02:39]}  Nc5 {[%clk 0:02:29]} 11. h3 {[%clk 0:02:36]}  Rb8 {[%clk 0:02:29]} 12. Be3 {[%clk 0:02:30]}  Bd7 {[%clk 0:02:29]} 13. Rc1 {[%clk 0:01:16]}  Re8 {[%clk 0:02:16]} 14. a3 {[%clk 0:01:11]}  Ne6 {[%clk 0:02:14]} 15. b4 {[%clk 0:01:05]}  Rc8 {[%clk 0:02:09]} 16. Nd5 {[%clk 0:01:03]}  Nxd5 {[%clk 0:02:01]} 17. exd5 {[%clk 0:01:04]}  Nxd4 {[%clk 0:01:17]} 18. Bxd4 {[%clk 0:01:05]}  Bxd4 {[%clk 0:01:17]} 19. Qxd4 {[%clk 0:01:06]}  a5 {[%clk 0:01:17]} 20. c5 {[%clk 0:00:58]}  axb4 {[%clk 0:01:17]} 21. axb4 {[%clk 0:00:59]}  Bb5 {[%clk 0:00:44]} 22. h4 {[%clk 0:00:56]}  h5 {[%clk 0:00:38]} 23. Rc3 {[%clk 0:00:53]}  Qd7 {[%clk 0:00:37]} 24. Kh2 {[%clk 0:00:53]}  Qg4 {[%clk 0:00:32]} 25. Re4 {[%clk 0:00:45]}  Qf5 {[%clk 0:00:17]} 26. Bh3 {[%clk 0:00:39]}  dxc5 {[%clk 0:00:16]} 27. Bxf5 {[%clk 0:00:26]}  cxd4 {[%clk 0:00:12]} 28. Rxc8 {[%clk 0:00:27]}  gxf5 {[%clk 0:00:08]} 29. Rxe8+ {[%clk 0:00:27]}  Bxe8 {[%clk 0:00:09]} 30. Rxd4 {[%clk 0:00:26]}  Kf8 {[%clk 0:00:08]} 31. Rc4 {[%clk 0:00:23]}  Bb5 {[%clk 0:00:07]} 32. Rc8+ {[%clk 0:00:23]}  Kg7 {[%clk 0:00:08]} 33. Rc7 {[%clk 0:00:23]}  Ba6 {[%clk 0:00:08]} 34. Rxe7 {[%clk 0:00:23]}  Kf6 {[%clk 0:00:04]} 35. d6 {[%clk 0:00:23]} 1-0

[Event "January 9 Late 2024"]
[Site "https://www.chess.com"]
[Date "2024.01.09"]
[Round "3"]
[White "Mikaelyan, Arman"]
[Black "Iturrizaga Bonelli, Eduardo"]
[Result "1-0"]
[Board "16"]
[TimeControl "180+1"]
[WhiteFideId "13304852"]
[BlackFideId "3901211"]
[WhiteElo "2819"]
[BlackElo "3042"]
[WhiteTeam "ARM"]
[BlackTeam "ESP"]
[WhiteClock "0:00:14"]
[BlackClock "0:00:00"]

1. Nf3 {[%clk 0:03:00]}  Nf6 {[%clk 0:03:00]} 2. g3 {[%clk 0:03:00]}  b6 {[%clk 0:02:59]} 3. Bg2 {[%clk 0:03:00]}  Bb7 {[%clk 0:03:00]} 4. c4 {[%clk 0:02:59]}  c5 {[%clk 0:03:00]} 5. O-O {[%clk 0:02:57]}  g6 {[%clk 0:03:01]} 6. b3 {[%clk 0:02:57]}  Bg7 {[%clk 0:03:01]} 7. Bb2 {[%clk 0:02:58]}  O-O {[%clk 0:03:01]} 8. Nc3 {[%clk 0:02:56]}  e6 {[%clk 0:03:01]} 9. e3 {[%clk 0:02:52]}  Qe7 {[%clk 0:03:01]} 10. d4 {[%clk 0:02:52]}  Na6 {[%clk 0:03:01]} 11. d5 {[%clk 0:02:38]}  exd5 {[%clk 0:02:59]} 12. cxd5 {[%clk 0:02:39]}  d6 {[%clk 0:02:53]} 13. Nd2 {[%clk 0:02:29]}  Nc7 {[%clk 0:02:38]} 14. Nc4 {[%clk 0:02:27]}  Nd7 {[%clk 0:02:19]} 15. Qc2 {[%clk 0:02:18]}  Rab8 {[%clk 0:02:06]} 16. Rad1 {[%clk 0:02:11]}  Ne5 {[%clk 0:01:50]} 17. Rfe1 {[%clk 0:01:37]}  Nxc4 {[%clk 0:01:34]} 18. bxc4 {[%clk 0:01:38]}  Ba6 {[%clk 0:01:34]} 19. Bf1 {[%clk 0:01:25]}  f5 {[%clk 0:00:34]} 20. a4 {[%clk 0:01:21]}  Bc8 {[%clk 0:00:26]} 21. Ne2 {[%clk 0:01:10]}  Na6 {[%clk 0:00:25]} 22. Bxg7 {[%clk 0:01:09]}  Qxg7 {[%clk 0:00:25]} 23. Nf4 {[%clk 0:01:04]}  Nb4 {[%clk 0:00:23]} 24. Qd2 {[%clk 0:01:01]}  Re8 {[%clk 0:00:22]} 25. Bg2 {[%clk 0:01:01]}  Bd7 {[%clk 0:00:22]} 26. Ne6 {[%clk 0:01:00]}  Bxe6 {[%clk 0:00:21]} 27. dxe6 {[%clk 0:01:01]}  Rxe6 {[%clk 0:00:22]} 28. e4 {[%clk 0:00:51]}  fxe4 {[%clk 0:00:20]} 29. Rxe4 {[%clk 0:00:52]}  Rxe4 {[%clk 0:00:20]} 30. Bxe4 {[%clk 0:00:53]}  Rd8 {[%clk 0:00:20]} 31. Qg5 {[%clk 0:00:53]}  Qf8 {[%clk 0:00:15]} 32. h4 {[%clk 0:00:41]}  Re8 {[%clk 0:00:13]} 33. Bxg6 {[%clk 0:00:23]}  hxg6 {[%clk 0:00:13]} 34. Qxg6+ {[%clk 0:00:24]}  Kh8 {[%clk 0:00:14]} 35. Rxd6 {[%clk 0:00:20]}  Re1+ {[%clk 0:00:10]} 36. Kg2 {[%clk 0:00:20]}  Re7 {[%clk 0:00:07]} 37. Qh5+ {[%clk 0:00:17]}  Rh7 {[%clk 0:00:05]} 38. Qe5+ {[%clk 0:00:17]}  Rg7 {[%clk 0:00:06]} 39. h5 {[%clk 0:00:16]}  Qa8+ {[%clk 0:00:04]} 40. Kg1 {[%clk 0:00:15]}  Kg8 {[%clk 0:00:02]} 41. h6 {[%clk 0:00:15]}  Rf7 {[%clk 0:00:02]} 42. Rg6+ {[%clk 0:00:15]}  Kf8 {[%clk 0:00:00]} 43. Qh8+ {[%clk 0:00:14]} 1-0

[Event "January 9 Late 2024"]
[Site "https://www.chess.com"]
[Date "2024.01.09"]
[Round "3"]
[White "Tatarinov, Dmitry"]
[Black "Theodorou, Nikolas"]
[Result "0-1"]
[Board "18"]
[TimeControl "180+1"]
[WhiteFideId "24160067"]
[BlackFideId "4262875"]
[WhiteElo "2794"]
[BlackElo "3028"]
[WhiteTeam "RUS"]
[BlackTeam "GRE"]
[WhiteClock "0:01:48"]
[BlackClock "0:01:23"]

1. e4 {[%clk 0:02:54]}  b6 {[%clk 0:03:00]} 2. d4 {[%clk 0:02:54]}  Bb7 {[%clk 0:03:01]} 3. Nd2 {[%clk 0:02:53]}  d6 {[%clk 0:03:01]} 4. Ngf3 {[%clk 0:02:54]}  Nd7 {[%clk 0:03:02]} 5. Bd3 {[%clk 0:02:54]}  e5 {[%clk 0:03:02]} 6. d5 {[%clk 0:02:53]}  g6 {[%clk 0:03:02]} 7. O-O {[%clk 0:02:53]}  Bg7 {[%clk 0:03:01]} 8. a4 {[%clk 0:02:54]}  c6 {[%clk 0:02:46]} 9. dxc6 {[%clk 0:02:53]}  Bxc6 {[%clk 0:02:47]} 10. b3 {[%clk 0:02:50]}  Ngf6 {[%clk 0:02:41]} 11. Ba3 {[%clk 0:02:51]}  Nc5 {[%clk 0:02:39]} 12. Bxc5 {[%clk 0:02:51]}  bxc5 {[%clk 0:02:29]} 13. Bb5 {[%clk 0:02:50]}  Rc8 {[%clk 0:02:23]} 14. Bxc6+ {[%clk 0:02:50]}  Rxc6 {[%clk 0:02:24]} 15. Re1 {[%clk 0:02:50]}  O-O {[%clk 0:02:25]} 16. Nc4 {[%clk 0:02:50]}  Re8 {[%clk 0:02:15]} 17. Qd3 {[%clk 0:02:49]}  d5 {[%clk 0:02:07]} 18. exd5 {[%clk 0:02:48]}  e4 {[%clk 0:02:08]} 19. Rxe4 {[%clk 0:02:28]}  Nxe4 {[%clk 0:02:04]} 20. dxc6 {[%clk 0:02:28]}  Bxa1 {[%clk 0:01:54]} 21. g3 {[%clk 0:02:11]}  Bd4 {[%clk 0:01:32]} 22. Nxd4 {[%clk 0:02:09]}  cxd4 {[%clk 0:01:26]} 23. b4 {[%clk 0:01:48]}  Qf6 {[%clk 0:01:23]} 0-1

[Event "January 9 Late 2024"]
[Site "https://www.chess.com"]
[Date "2024.01.09"]
[Round "3"]
[White "Paravyan, David"]
[Black "Badmatsyrenov, Oleg"]
[Result "1-0"]
[Board "19"]
[TimeControl "180+1"]
[WhiteFideId "4194985"]
[BlackFideId "24115762"]
[WhiteElo "3024"]
[BlackElo "2788"]
[WhiteTeam "FID"]
[BlackTeam "FID"]
[WhiteClock "0:02:18"]
[BlackClock "0:00:10"]

1. e4 {[%clk 0:03:00]}  c5 {[%clk 0:02:58]} 2. Nf3 {[%clk 0:03:00]}  e6 {[%clk 0:02:59]} 3. d4 {[%clk 0:03:00]}  cxd4 {[%clk 0:03:00]} 4. Nxd4 {[%clk 0:03:00]}  a6 {[%clk 0:03:01]} 5. h3 {[%clk 0:02:59]}  Qc7 {[%clk 0:02:58]} 6. Bd3 {[%clk 0:02:57]}  Nc6 {[%clk 0:02:57]} 7. Nxc6 {[%clk 0:02:57]}  bxc6 {[%clk 0:02:54]} 8. O-O {[%clk 0:02:56]}  d5 {[%clk 0:02:51]} 9. c4 {[%clk 0:02:56]}  Nf6 {[%clk 0:02:46]} 10. Nc3 {[%clk 0:02:55]}  d4 {[%clk 0:02:40]} 11. Na4 {[%clk 0:02:55]}  c5 {[%clk 0:02:32]} 12. f4 {[%clk 0:02:53]}  Be7 {[%clk 0:02:27]} 13. e5 {[%clk 0:02:52]}  Nd7 {[%clk 0:02:26]} 14. Be4 {[%clk 0:02:51]}  Bb7 {[%clk 0:02:25]} 15. Qf3 {[%clk 0:02:48]}  Rb8 {[%clk 0:02:22]} 16. b3 {[%clk 0:02:48]}  g6 {[%clk 0:02:14]} 17. Bd2 {[%clk 0:02:47]}  O-O {[%clk 0:02:12]} 18. Rae1 {[%clk 0:02:42]}  Bxe4 {[%clk 0:02:11]} 19. Qxe4 {[%clk 0:02:43]}  Qb7 {[%clk 0:01:58]} 20. Qe2 {[%clk 0:02:35]}  Bh4 {[%clk 0:01:56]} 21. Rd1 {[%clk 0:02:33]}  Qc6 {[%clk 0:01:55]} 22. Nb2 {[%clk 0:02:31]}  Ra8 {[%clk 0:01:48]} 23. Nd3 {[%clk 0:02:31]}  a5 {[%clk 0:01:47]} 24. Qg4 {[%clk 0:02:31]}  Be7 {[%clk 0:01:46]} 25. f5 {[%clk 0:02:31]}  exf5 {[%clk 0:01:44]} 26. Rxf5 {[%clk 0:02:31]}  Qe6 {[%clk 0:01:41]} 27. Rdf1 {[%clk 0:02:28]}  h5 {[%clk 0:00:24]} 28. Qg3 {[%clk 0:02:26]}  Bh4 {[%clk 0:00:25]} 29. Qxh4 {[%clk 0:02:23]}  gxf5 {[%clk 0:00:25]} 30. Nf4 {[%clk 0:02:20]}  Qh6 {[%clk 0:00:18]} 31. Nxh5 {[%clk 0:02:18]}  Qxd2 {[%clk 0:00:10]} 32. Qg3+ {[%clk 0:02:18]} 1-0

[Event "January 9 Late 2024"]
[Site "https://www.chess.com"]
[Date "2024.01.09"]
[Round "3"]
[White "Svane, Rasmus"]
[Black "Krzyzanowski, Marcin"]
[Result "1-0"]
[Board "21"]
[TimeControl "180+1"]
[WhiteFideId "4657101"]
[BlackFideId "1132199"]
[WhiteElo "3014"]
[BlackElo "2774"]
[WhiteTeam "GER"]
[BlackTeam "POL"]
[WhiteClock "0:00:53"]
[BlackClock "0:00:03"]

1. Nf3 {[%clk 0:03:00]}  Nf6 {[%clk 0:02:58]} 2. g3 {[%clk 0:03:00]}  d5 {[%clk 0:02:58]} 3. Bg2 {[%clk 0:03:01]}  b5 {[%clk 0:02:59]} 4. O-O {[%clk 0:02:59]}  e6 {[%clk 0:02:59]} 5. d3 {[%clk 0:02:59]}  Bb7 {[%clk 0:02:58]} 6. c4 {[%clk 0:02:55]}  c6 {[%clk 0:02:58]} 7. Qc2 {[%clk 0:02:35]}  Nbd7 {[%clk 0:02:55]} 8. b3 {[%clk 0:02:32]}  Be7 {[%clk 0:02:54]} 9. Bb2 {[%clk 0:02:32]}  O-O {[%clk 0:02:55]} 10. Nbd2 {[%clk 0:02:30]}  Rc8 {[%clk 0:02:56]} 11. e4 {[%clk 0:02:29]}  Ne8 {[%clk 0:02:48]} 12. Rac1 {[%clk 0:02:27]}  a5 {[%clk 0:02:48]} 13. Rfd1 {[%clk 0:02:27]}  Nd6 {[%clk 0:02:35]} 14. c5 {[%clk 0:02:17]}  Ne8 {[%clk 0:02:31]} 15. d4 {[%clk 0:02:17]}  b4 {[%clk 0:02:20]} 16. e5 {[%clk 0:02:04]}  Ba6 {[%clk 0:02:16]} 17. Nf1 {[%clk 0:01:49]}  f6 {[%clk 0:02:15]} 18. exf6 {[%clk 0:01:48]}  Bxf6 {[%clk 0:02:14]} 19. Re1 {[%clk 0:01:48]}  Nc7 {[%clk 0:02:15]} 20. Ne3 {[%clk 0:01:47]}  h5 {[%clk 0:01:41]} 21. h4 {[%clk 0:01:32]}  Bb5 {[%clk 0:01:31]} 22. Bh3 {[%clk 0:01:32]}  Ra8 {[%clk 0:01:16]} 23. Ng2 {[%clk 0:01:31]}  Be7 {[%clk 0:00:57]} 24. Nf4 {[%clk 0:01:22]}  Rxf4 {[%clk 0:00:57]} 25. gxf4 {[%clk 0:01:23]}  Bxh4 {[%clk 0:00:57]} 26. Rxe6 {[%clk 0:01:11]}  Bf6 {[%clk 0:00:36]} 27. Rd6 {[%clk 0:01:05]}  Qf8 {[%clk 0:00:03]} 28. Rxd7 {[%clk 0:01:03]}  Bd8 {[%clk 0:00:04]} 29. Rxc7 {[%clk 0:00:55]}  Bxc7 {[%clk 0:00:04]} 30. Be6+ {[%clk 0:00:56]}  Kh8 {[%clk 0:00:04]} 31. Ng5 {[%clk 0:00:56]}  g6 {[%clk 0:00:04]} 32. Qxg6 {[%clk 0:00:55]}  Qe7 {[%clk 0:00:02]} 33. Qxh5+ {[%clk 0:00:52]}  Kg7 {[%clk 0:00:02]} 34. Qh7+ {[%clk 0:00:52]}  Kf6 {[%clk 0:00:03]} 35. Qh6# {[%clk 0:00:53]} 1-0

[Event "January 9 Late 2024"]
[Site "https://www.chess.com"]
[Date "2024.01.09"]
[Round "3"]
[White "Xiong, Jeffery"]
[Black "Siddharth, Jagadeesh"]
[Result "1-0"]
[Board "23"]
[TimeControl "180+1"]
[WhiteFideId "2047640"]
[BlackFideId "5818320"]
[WhiteElo "3010"]
[BlackElo "2766"]
[WhiteTeam "USA"]
[BlackTeam "SGP"]
[WhiteClock "0:01:46"]
[BlackClock "0:01:21"]

1. e4 {[%clk 0:03:00]}  e6 {[%clk 0:02:57]} 2. d4 {[%clk 0:03:00]}  d5 {[%clk 0:02:56]} 3. e5 {[%clk 0:03:00]}  c5 {[%clk 0:02:57]} 4. c3 {[%clk 0:03:00]}  Nc6 {[%clk 0:02:57]} 5. Nf3 {[%clk 0:03:01]}  Bd7 {[%clk 0:02:58]} 6. Be2 {[%clk 0:03:00]}  cxd4 {[%clk 0:02:58]} 7. cxd4 {[%clk 0:03:00]}  Nge7 {[%clk 0:02:59]} 8. O-O {[%clk 0:02:50]}  Nf5 {[%clk 0:02:59]} 9. Nc3 {[%clk 0:02:50]}  a6 {[%clk 0:02:59]} 10. Be3 {[%clk 0:02:47]}  Be7 {[%clk 0:02:59]} 11. Bd3 {[%clk 0:02:46]}  Nxe3 {[%clk 0:03:00]} 12. fxe3 {[%clk 0:02:47]}  O-O {[%clk 0:03:00]} 13. a3 {[%clk 0:02:44]}  f6 {[%clk 0:02:59]} 14. exf6 {[%clk 0:02:28]}  Bxf6 {[%clk 0:02:58]} 15. Na4 {[%clk 0:02:28]}  Qe7 {[%clk 0:02:28]} 16. Rc1 {[%clk 0:02:19]}  Be8 {[%clk 0:02:24]} 17. Qb3 {[%clk 0:02:02]}  Bh5 {[%clk 0:02:12]} 18. Nc5 {[%clk 0:01:58]}  Bxf3 {[%clk 0:02:07]} 19. Rxf3 {[%clk 0:01:57]}  Nxd4 {[%clk 0:02:05]} 20. exd4 {[%clk 0:01:54]}  Bxd4+ {[%clk 0:02:06]} 21. Kh1 {[%clk 0:01:54]}  Rxf3 {[%clk 0:01:59]} 22. gxf3 {[%clk 0:01:54]}  Bxc5 {[%clk 0:01:54]} 23. Qc2 {[%clk 0:01:54]}  Bd6 {[%clk 0:01:42]} 24. Bxh7+ {[%clk 0:01:54]}  Kh8 {[%clk 0:01:43]} 25. Bg6 {[%clk 0:01:55]}  Qh4 {[%clk 0:01:38]} 26. Qc8+ {[%clk 0:01:52]}  Qd8 {[%clk 0:01:36]} 27. Qxe6 {[%clk 0:01:51]}  Qf6 {[%clk 0:01:21]} 28. Rc8+ {[%clk 0:01:46]} 1-0

[Event "January 9 Late 2024"]
[Site "https://www.chess.com"]
[Date "2024.01.09"]
[Round "3"]
[White "Hakobyan, Aram"]
[Black "Goltsev, Dmitry"]
[Result "1-0"]
[Board "25"]
[TimeControl "180+1"]
[WhiteFideId "13306677"]
[BlackFideId "24176710"]
[WhiteElo "3004"]
[BlackElo "2755"]
[WhiteTeam "ARM"]
[BlackTeam "RUS"]
[WhiteClock "0:00:09"]
[BlackClock "0:00:03"]

1. e4 {[%clk 0:03:00]}  e6 {[%clk 0:02:59]} 2. d4 {[%clk 0:03:00]}  d5 {[%clk 0:02:59]} 3. exd5 {[%clk 0:03:01]}  exd5 {[%clk 0:02:59]} 4. Nf3 {[%clk 0:03:02]}  Nf6 {[%clk 0:02:57]} 5. Bd3 {[%clk 0:02:59]}  c5 {[%clk 0:02:57]} 6. O-O {[%clk 0:02:58]}  Be7 {[%clk 0:02:58]} 7. dxc5 {[%clk 0:02:54]}  Bxc5 {[%clk 0:02:58]} 8. Bg5 {[%clk 0:02:52]}  O-O {[%clk 0:02:59]} 9. Nbd2 {[%clk 0:02:44]}  Nc6 {[%clk 0:02:59]} 10. c3 {[%clk 0:02:43]}  Bg4 {[%clk 0:02:58]} 11. Qa4 {[%clk 0:02:38]}  Bh5 {[%clk 0:02:57]} 12. Qh4 {[%clk 0:02:35]}  Bg6 {[%clk 0:02:54]} 13. Bxg6 {[%clk 0:02:34]}  hxg6 {[%clk 0:02:54]} 14. Rad1 {[%clk 0:02:34]}  Be7 {[%clk 0:02:51]} 15. Nc4 {[%clk 0:02:18]}  Ne4 {[%clk 0:02:28]} 16. Bxe7 {[%clk 0:02:12]}  Nxe7 {[%clk 0:02:29]} 17. Ne3 {[%clk 0:02:09]}  Nf5 {[%clk 0:01:12]} 18. Qxd8 {[%clk 0:02:00]}  Raxd8 {[%clk 0:01:13]} 19. Nxd5 {[%clk 0:01:58]}  Rfe8 {[%clk 0:01:09]} 20. Rfe1 {[%clk 0:01:53]}  Nc5 {[%clk 0:01:08]} 21. Rxe8+ {[%clk 0:01:36]}  Rxe8 {[%clk 0:01:09]} 22. Kf1 {[%clk 0:01:37]}  f6 {[%clk 0:01:06]} 23. g4 {[%clk 0:01:34]}  Nh6 {[%clk 0:01:03]} 24. g5 {[%clk 0:01:32]}  fxg5 {[%clk 0:01:01]} 25. Nxg5 {[%clk 0:01:33]}  Nf5 {[%clk 0:00:58]} 26. Nf4 {[%clk 0:01:29]}  Rf8 {[%clk 0:00:47]} 27. Kg1 {[%clk 0:01:15]}  Nh4 {[%clk 0:00:43]} 28. Nfe6 {[%clk 0:01:16]}  Nxe6 {[%clk 0:00:41]} 29. Nxe6 {[%clk 0:01:16]}  Rf6 {[%clk 0:00:37]} 30. Rd8+ {[%clk 0:01:13]}  Kf7 {[%clk 0:00:36]} 31. Nc5 {[%clk 0:01:04]}  b6 {[%clk 0:00:30]} 32. Ne4 {[%clk 0:01:04]}  Rf4 {[%clk 0:00:26]} 33. Nd2 {[%clk 0:00:57]}  Ra4 {[%clk 0:00:21]} 34. a3 {[%clk 0:00:56]}  Ke7 {[%clk 0:00:21]} 35. Ra8 {[%clk 0:00:46]}  Nf5 {[%clk 0:00:20]} 36. Nb3 {[%clk 0:00:46]}  Kf6 {[%clk 0:00:14]} 37. Kf1 {[%clk 0:00:42]}  Kg5 {[%clk 0:00:10]} 38. Nc1 {[%clk 0:00:40]}  Kg4 {[%clk 0:00:08]} 39. Nd3 {[%clk 0:00:40]}  Kg5 {[%clk 0:00:06]} 40. Ne5 {[%clk 0:00:35]}  Re4 {[%clk 0:00:05]} 41. Nf7+ {[%clk 0:00:30]}  Kf6 {[%clk 0:00:06]} 42. Rxa7 {[%clk 0:00:31]}  Rh4 {[%clk 0:00:05]} 43. Nd8 {[%clk 0:00:24]}  Rxh2 {[%clk 0:00:04]} 44. Rb7 {[%clk 0:00:25]}  Rh1+ {[%clk 0:00:04]} 45. Kg2 {[%clk 0:00:25]}  Rb1 {[%clk 0:00:04]} 46. Rxb6+ {[%clk 0:00:26]}  Kg5 {[%clk 0:00:04]} 47. Ne6+ {[%clk 0:00:19]}  Kg4 {[%clk 0:00:04]} 48. Rb4+ {[%clk 0:00:17]}  Kh5 {[%clk 0:00:05]} 49. Nf4+ {[%clk 0:00:17]}  Kg5 {[%clk 0:00:05]} 50. Ne6+ {[%clk 0:00:14]}  Kh5 {[%clk 0:00:05]} 51. a4 {[%clk 0:00:08]}  g5 {[%clk 0:00:06]} 52. Nd4 {[%clk 0:00:06]}  Nh4+ {[%clk 0:00:05]} 53. Kh2 {[%clk 0:00:07]}  Rf1 {[%clk 0:00:04]} 54. f3 {[%clk 0:00:05]}  Rf2+ {[%clk 0:00:04]} 55. Kg1 {[%clk 0:00:05]}  Rd2 {[%clk 0:00:04]} 56. a5 {[%clk 0:00:05]}  g4 {[%clk 0:00:03]} 57. fxg4+ {[%clk 0:00:05]}  Kg5 {[%clk 0:00:04]} 58. a6 {[%clk 0:00:03]}  Rd1+ {[%clk 0:00:03]} 59. Kf2 {[%clk 0:00:04]}  Ra1 {[%clk 0:00:02]} 60. Nf3+ {[%clk 0:00:03]}  Nxf3 {[%clk 0:00:02]} 61. Kxf3 {[%clk 0:00:04]}  Rxa6 {[%clk 0:00:02]} 62. Rb5+ {[%clk 0:00:04]}  Kg6 {[%clk 0:00:02]} 63. c4 {[%clk 0:00:04]}  Ra1 {[%clk 0:00:02]} 64. b3 {[%clk 0:00:05]}  Rc1 {[%clk 0:00:03]} 65. g5 {[%clk 0:00:04]}  Kh5 {[%clk 0:00:03]} 66. Ke4 {[%clk 0:00:04]}  g6 {[%clk 0:00:04]} 67. Kd4 {[%clk 0:00:04]}  Rd1+ {[%clk 0:00:04]} 68. Kc3 {[%clk 0:00:04]}  Rc1+ {[%clk 0:00:04]} 69. Kb2 {[%clk 0:00:05]}  Re1 {[%clk 0:00:05]} 70. Rd5 {[%clk 0:00:05]}  Re2+ {[%clk 0:00:04]} 71. Kc3 {[%clk 0:00:05]}  Re3+ {[%clk 0:00:04]} 72. Kb4 {[%clk 0:00:06]}  Re4 {[%clk 0:00:05]} 73. Kb5 {[%clk 0:00:06]}  Re3 {[%clk 0:00:06]} 74. b4 {[%clk 0:00:07]}  Rb3 {[%clk 0:00:05]} 75. c5 {[%clk 0:00:07]}  Rc3 {[%clk 0:00:05]} 76. c6 {[%clk 0:00:08]}  Rc1 {[%clk 0:00:04]} 77. Kb6 {[%clk 0:00:08]}  Rc4 {[%clk 0:00:04]} 78. b5 {[%clk 0:00:09]}  Rf4 {[%clk 0:00:04]} 79. c7 {[%clk 0:00:09]}  Rc4 {[%clk 0:00:04]} 80. Rc5 {[%clk 0:00:09]}  Rf4 {[%clk 0:00:03]} 81. Rc6 {[%clk 0:00:07]}  Kg4 {[%clk 0:00:02]} 82. c8=Q+ {[%clk 0:00:08]}  Kg3 {[%clk 0:00:03]} 83. Qc7 {[%clk 0:00:08]}  Kg4 {[%clk 0:00:02]} 84. Qxf4+ {[%clk 0:00:07]}  Kh5 {[%clk 0:00:02]} 85. Qf3+ {[%clk 0:00:08]}  Kh4 {[%clk 0:00:02]} 86. Rc4+ {[%clk 0:00:08]}  Kxg5 {[%clk 0:00:03]} 87. Qf4+ {[%clk 0:00:08]}  Kh5 {[%clk 0:00:03]} 88. Qh4# {[%clk 0:00:09]} 1-0

[Event "January 9 Late 2024"]
[Site "https://www.chess.com"]
[Date "2024.01.09"]
[Round "3"]
[White "Tristan, Leonardo"]
[Black "Antipov, Mikhail Al."]
[Result "1-0"]
[Board "26"]
[TimeControl "180+1"]
[WhiteFideId "113816"]
[BlackFideId "4107012"]
[WhiteElo "2752"]
[BlackElo "2995"]
[WhiteTeam "ARG"]
[BlackTeam "FID"]
[WhiteClock "0:00:05"]
[BlackClock "0:00:15"]

1. d4 {[%clk 0:03:00]}  Nf6 {[%clk 0:02:49]} 2. Nf3 {[%clk 0:03:00]}  d5 {[%clk 0:02:47]} 3. Bf4 {[%clk 0:03:00]}  Nh5 {[%clk 0:02:47]} 4. Bc1 {[%clk 0:02:51]}  e6 {[%clk 0:02:43]} 5. c4 {[%clk 0:02:43]}  Be7 {[%clk 0:02:41]} 6. Nc3 {[%clk 0:02:40]}  O-O {[%clk 0:02:40]} 7. e4 {[%clk 0:02:39]}  dxe4 {[%clk 0:02:36]} 8. Nxe4 {[%clk 0:02:38]}  b6 {[%clk 0:02:26]} 9. Ne5 {[%clk 0:01:59]}  Bb7 {[%clk 0:02:18]} 10. Qxh5 {[%clk 0:01:13]}  Bxe4 {[%clk 0:02:18]} 11. Be3 {[%clk 0:01:09]}  Bb4+ {[%clk 0:02:16]} 12. Kd1 {[%clk 0:01:07]}  c5 {[%clk 0:01:58]} 13. a3 {[%clk 0:00:42]}  cxd4 {[%clk 0:01:54]} 14. Bh6 {[%clk 0:00:42]}  Bd6 {[%clk 0:01:36]} 15. Qg4 {[%clk 0:00:33]}  Bxe5 {[%clk 0:01:20]} 16. Qxe4 {[%clk 0:00:31]}  Nd7 {[%clk 0:01:20]} 17. Bd2 {[%clk 0:00:25]}  a5 {[%clk 0:01:12]} 18. Bd3 {[%clk 0:00:11]}  g6 {[%clk 0:01:12]} 19. b4 {[%clk 0:00:05]}  axb4 {[%clk 0:01:10]} 20. Bxb4 {[%clk 0:00:06]}  Re8 {[%clk 0:01:07]} 21. h4 {[%clk 0:00:06]}  Bg7 {[%clk 0:00:54]} 22. h5 {[%clk 0:00:06]}  Nc5 {[%clk 0:00:51]} 23. Bxc5 {[%clk 0:00:07]}  bxc5 {[%clk 0:00:52]} 24. hxg6 {[%clk 0:00:06]}  hxg6 {[%clk 0:00:52]} 25. Qf3 {[%clk 0:00:07]}  Qb6 {[%clk 0:00:47]} 26. Rb1 {[%clk 0:00:06]}  Qa5 {[%clk 0:00:46]} 27. Ke2 {[%clk 0:00:06]}  Qxa3 {[%clk 0:00:41]} 28. Rhd1 {[%clk 0:00:06]}  Rab8 {[%clk 0:00:38]} 29. Kf1 {[%clk 0:00:06]}  Rb3 {[%clk 0:00:29]} 30. Rxb3 {[%clk 0:00:06]}  Qxb3 {[%clk 0:00:30]} 31. Rb1 {[%clk 0:00:07]}  Qa2 {[%clk 0:00:26]} 32. Rb7 {[%clk 0:00:04]}  Qa1+ {[%clk 0:00:26]} 33. Rb1 {[%clk 0:00:04]}  Qc3 {[%clk 0:00:24]} 34. g3 {[%clk 0:00:04]}  Be5 {[%clk 0:00:20]} 35. Rb7 {[%clk 0:00:04]}  Rf8 {[%clk 0:00:18]} 36. Kg2 {[%clk 0:00:04]}  Kg7 {[%clk 0:00:18]} 37. Qe4 {[%clk 0:00:05]}  Bf6 {[%clk 0:00:15]} 38. Qxg6+ {[%clk 0:00:05]} 1-0